[Event "Titled Tuesday Blitz January 31 Early 2023"]
[White "Levitan, Caleb Levi"]
[Black "Manukian, Artak"]
[WhiteFideId "14332620"]
[BlackFideId "13301373"]
[WhiteElo "2129"]
[BlackElo "2196"]
[Result "0-1"]
[Round "08"]
[TimeControl "180+2"]
[Date "2023.01.31"]
[WhiteClock "0:00:01"]
[BlackClock "0:00:09"]

1. d4 {[%clk 0:03:00]}  d5 {[%clk 0:02:53]} 2. Bf4 {[%clk 0:02:59]}  Nf6 {[%clk 0:02:52]} 3. e3 {[%clk 0:02:59]}  Bg4 {[%clk 0:02:52]} 4. Be2 {[%clk 0:02:34]}  Bxe2 {[%clk 0:02:50]} 5. Qxe2 {[%clk 0:02:34]}  e6 {[%clk 0:02:51]} 6. Qb5+ {[%clk 0:02:28]}  Nbd7 {[%clk 0:02:48]} 7. Qxb7 {[%clk 0:02:23]}  Rb8 {[%clk 0:02:31]} 8. Qxc7 {[%clk 0:02:17]}  Qxc7 {[%clk 0:02:27]} 9. Bxc7 {[%clk 0:02:17]}  Rxb2 {[%clk 0:02:28]} 10. Kd1 {[%clk 0:02:10]}  Ne4 {[%clk 0:02:25]} 11. Bg3 {[%clk 0:02:06]}  Rxb1+ {[%clk 0:02:16]} 12. Rxb1 {[%clk 0:02:04]}  Nc3+ {[%clk 0:02:17]} 13. Kc1 {[%clk 0:02:04]}  Ba3+ {[%clk 0:02:09]} 14. Rb2 {[%clk 0:02:03]}  Na4 {[%clk 0:02:09]} 15. Ne2 {[%clk 0:01:57]}  Bxb2+ {[%clk 0:02:05]} 16. Kd2 {[%clk 0:01:57]}  Ba3 {[%clk 0:02:02]} 17. Rb1 {[%clk 0:01:53]}  Nab6 {[%clk 0:02:00]} 18. Nc3 {[%clk 0:01:44]}  O-O {[%clk 0:01:55]} 19. Nb5 {[%clk 0:01:44]}  Nc4+ {[%clk 0:01:48]} 20. Kd3 {[%clk 0:01:36]}  Ra8 {[%clk 0:01:44]} 21. Nc7 {[%clk 0:01:16]}  Rc8 {[%clk 0:01:29]} 22. Rb7 {[%clk 0:01:16]}  e5 {[%clk 0:01:29]} 23. Nxd5 {[%clk 0:01:05]}  Ncb6 {[%clk 0:01:16]} 24. Nxb6 {[%clk 0:00:51]}  Nxb6 {[%clk 0:01:16]} 25. Rxa7 {[%clk 0:00:49]}  Nc4 {[%clk 0:01:10]} 26. dxe5 {[%clk 0:00:41]}  h5 {[%clk 0:01:06]} 27. h4 {[%clk 0:00:33]}  Bc5 {[%clk 0:01:01]} 28. Rb7 {[%clk 0:00:20]}  Nb6 {[%clk 0:00:59]} 29. c4 {[%clk 0:00:17]}  Rd8+ {[%clk 0:00:53]} 30. Kc3 {[%clk 0:00:15]}  Ra8 {[%clk 0:00:50]} 31. Kb3 {[%clk 0:00:14]}  Ra3+ {[%clk 0:00:40]} 32. Kb2 {[%clk 0:00:14]}  Nxc4+ {[%clk 0:00:34]} 33. Kb1 {[%clk 0:00:14]}  Nd2+ {[%clk 0:00:28]} 34. Kb2 {[%clk 0:00:10]}  Ne4 {[%clk 0:00:26]} 35. Rc7 {[%clk 0:00:09]}  Ra5 {[%clk 0:00:19]} 36. Kb3 {[%clk 0:00:08]}  Nxg3 {[%clk 0:00:19]} 37. fxg3 {[%clk 0:00:08]}  Bxe3 {[%clk 0:00:19]} 38. a4 {[%clk 0:00:08]}  Rxe5 {[%clk 0:00:17]} 39. Kc4 {[%clk 0:00:08]}  Bf2 {[%clk 0:00:16]} 40. Rc8+ {[%clk 0:00:06]}  Kh7 {[%clk 0:00:16]} 41. Rc7 {[%clk 0:00:06]}  Kg6 {[%clk 0:00:17]} 42. Rc6+ {[%clk 0:00:06]}  f6 {[%clk 0:00:17]} 43. Kd3 {[%clk 0:00:02]}  Bxg3 {[%clk 0:00:17]} 44. Rc4 {[%clk 0:00:02]}  f5 {[%clk 0:00:16]} 45. Rb4 {[%clk 0:00:01]}  f4 {[%clk 0:00:13]} 46. Rb6+ {[%clk 0:00:02]}  Kf7 {[%clk 0:00:13]} 47. Rb7+ {[%clk 0:00:03]}  Kf6 {[%clk 0:00:13]} 48. Rb8 {[%clk 0:00:03]}  Bxh4 {[%clk 0:00:12]} 49. Rf8+ {[%clk 0:00:03]}  Kg6 {[%clk 0:00:12]} 50. Ra8 {[%clk 0:00:03]}  Be1 {[%clk 0:00:11]} 51. Ra6+ {[%clk 0:00:02]}  Kg5 {[%clk 0:00:11]} 52. Kc2 {[%clk 0:00:02]}  g6 {[%clk 0:00:10]} 53. Kd1 {[%clk 0:00:03]}  Bb4 {[%clk 0:00:10]} 54. Rb6 {[%clk 0:00:02]}  Ba5 {[%clk 0:00:10]} 55. Rb7 {[%clk 0:00:02]}  Kf5 {[%clk 0:00:10]} 56. Rd7 {[%clk 0:00:02]}  g5 {[%clk 0:00:10]} 57. Rf7+ {[%clk 0:00:02]}  Ke4 {[%clk 0:00:10]} 58. Rh7 {[%clk 0:00:03]}  h4 {[%clk 0:00:09]} 59. Rb7 {[%clk 0:00:03]}  Ke3 {[%clk 0:00:09]} 60. Rb3+ {[%clk 0:00:02]}  Kf2 {[%clk 0:00:09]} 61. Rb7 {[%clk 0:00:02]}  Kxg2 {[%clk 0:00:09]} 62. Rb2+ {[%clk 0:00:02]}  Kg3 {[%clk 0:00:09]} 63. Rb3+ {[%clk 0:00:02]}  f3 {[%clk 0:00:09]} 64. Rb2 {[%clk 0:00:03]}  f2 {[%clk 0:00:09]} 65. Rb3+ {[%clk 0:00:03]}  Kg2 {[%clk 0:00:10]} 66. Rb2 {[%clk 0:00:03]}  g4 {[%clk 0:00:09]} 67. Ra2 {[%clk 0:00:02]}  g3 {[%clk 0:00:10]} 68. Rb2 {[%clk 0:00:02]}  h3 {[%clk 0:00:10]} 69. Kc1 {[%clk 0:00:03]}  h2 {[%clk 0:00:11]} 70. Kb1 {[%clk 0:00:03]}  h1=Q+ {[%clk 0:00:11]} 71. Ka2 {[%clk 0:00:03]}  Qh7 {[%clk 0:00:10]} 72. Rd2 {[%clk 0:00:03]}  Qf7+ {[%clk 0:00:10]} 73. Ka3 {[%clk 0:00:02]}  Bxd2 {[%clk 0:00:09]} 74. a5 {[%clk 0:00:02]}  f1=Q {[%clk 0:00:09]} 75. a6 {[%clk 0:00:02]}  Qd3+ {[%clk 0:00:09]} 76. Kb2 {[%clk 0:00:02]}  Qfb3+ {[%clk 0:00:09]} 77. Ka1 {[%clk 0:00:01]}  Qdb1# {[%clk 0:00:09]} 0-1


[Site "https://www.chess.com"]

[Event "Titled Tuesday Blitz January 31 Early 2023"]
[White "Petrova, Irina"]
[Black "Zacurdajev, Dmitry"]
[WhiteFideId "14124122"]
[BlackFideId "4196309"]
[WhiteElo "2108"]
[BlackElo "2273"]
[Result "1-0"]
[Round "08"]
[TimeControl "180+2"]
[Date "2023.01.31"]
[WhiteClock "0:00:12"]
[BlackClock "0:00:44"]

1. e4 {[%clk 0:03:00]}  c6 {[%clk 0:03:00]} 2. d4 {[%clk 0:03:00]}  d5 {[%clk 0:03:01]} 3. Nc3 {[%clk 0:03:01]}  dxe4 {[%clk 0:03:01]} 4. Nxe4 {[%clk 0:03:02]}  Nf6 {[%clk 0:03:02]} 5. Nxf6+ {[%clk 0:03:02]}  exf6 {[%clk 0:03:03]} 6. Be3 {[%clk 0:03:02]}  Bd6 {[%clk 0:03:02]} 7. Bd3 {[%clk 0:03:01]}  Na6 {[%clk 0:03:02]} 8. c3 {[%clk 0:03:00]}  Nc7 {[%clk 0:03:02]} 9. Ne2 {[%clk 0:02:59]}  h5 {[%clk 0:03:01]} 10. Qd2 {[%clk 0:02:58]}  Nd5 {[%clk 0:02:59]} 11. O-O-O {[%clk 0:02:44]}  Be6 {[%clk 0:02:56]} 12. Nf4 {[%clk 0:02:43]}  Nxf4 {[%clk 0:02:52]} 13. Bxf4 {[%clk 0:02:44]}  Bxa2 {[%clk 0:02:50]} 14. c4 {[%clk 0:02:39]}  Bb3 {[%clk 0:02:36]} 15. Rde1+ {[%clk 0:02:37]}  Kf8 {[%clk 0:02:36]} 16. Bxd6+ {[%clk 0:02:20]}  Qxd6 {[%clk 0:02:37]} 17. Qc3 {[%clk 0:02:20]}  Ba4 {[%clk 0:02:34]} 18. Re3 {[%clk 0:02:03]}  c5 {[%clk 0:02:27]} 19. d5 {[%clk 0:02:00]}  g6 {[%clk 0:02:19]} 20. Rhe1 {[%clk 0:01:57]}  Kg7 {[%clk 0:02:20]} 21. Re7 {[%clk 0:01:51]}  Rhe8 {[%clk 0:02:13]} 22. R1e6 {[%clk 0:01:33]}  Qf4+ {[%clk 0:02:11]} 23. Kb1 {[%clk 0:01:31]}  Rxe7 {[%clk 0:01:59]} 24. Rxe7 {[%clk 0:01:32]}  Qxf2 {[%clk 0:01:48]} 25. d6 {[%clk 0:01:27]}  Rd8 {[%clk 0:01:45]} 26. Qa5 {[%clk 0:01:18]}  Rxd6 {[%clk 0:01:40]} 27. Qxa4 {[%clk 0:01:14]}  Rxd3 {[%clk 0:01:34]} 28. Qe8 {[%clk 0:01:13]}  Rd1+ {[%clk 0:01:06]} 29. Ka2 {[%clk 0:01:13]}  Qf1 {[%clk 0:00:56]} 30. Rxf7+ {[%clk 0:00:50]}  Kh6 {[%clk 0:00:56]} 31. Qe3+ {[%clk 0:00:36]}  g5 {[%clk 0:00:56]} 32. Qe4 {[%clk 0:00:13]}  Ra1+ {[%clk 0:00:55]} 33. Kb3 {[%clk 0:00:14]}  Qd1+ {[%clk 0:00:54]} 34. Qc2 {[%clk 0:00:14]}  Qd6 {[%clk 0:00:44]} 35. Rh7# {[%clk 0:00:12]} 1-0


[Site "https://www.chess.com"]

[Event "Titled Tuesday Blitz January 31 Early 2023"]
[White "Fernandez Garcia, Gumersindo"]
[Black "Pavlidou, Ekaterini"]
[WhiteFideId "24516740"]
[BlackFideId "4213262"]
[WhiteElo "2160"]
[BlackElo "2088"]
[Result "0-1"]
[Round "08"]
[TimeControl "180+2"]
[Date "2023.01.31"]
[WhiteClock "0:00:04"]
[BlackClock "0:00:52"]

1. e4 {[%clk 0:03:00]}  c5 {[%clk 0:02:59]} 2. Nf3 {[%clk 0:02:56]}  e6 {[%clk 0:02:58]} 3. d4 {[%clk 0:02:56]}  cxd4 {[%clk 0:02:59]} 4. Nxd4 {[%clk 0:02:57]}  Nf6 {[%clk 0:02:59]} 5. Nc3 {[%clk 0:02:57]}  Nc6 {[%clk 0:02:59]} 6. Nxc6 {[%clk 0:02:57]}  bxc6 {[%clk 0:02:59]} 7. e5 {[%clk 0:02:58]}  Nd5 {[%clk 0:02:59]} 8. Ne4 {[%clk 0:02:58]}  Qc7 {[%clk 0:02:56]} 9. f4 {[%clk 0:02:58]}  Qb6 {[%clk 0:02:55]} 10. c4 {[%clk 0:02:58]}  Bb4+ {[%clk 0:02:55]} 11. Ke2 {[%clk 0:02:59]}  Ba6 {[%clk 0:02:55]} 12. Kf3 {[%clk 0:02:51]}  f5 {[%clk 0:02:55]} 13. Nf2 {[%clk 0:02:42]}  Ne7 {[%clk 0:02:54]} 14. Be3 {[%clk 0:02:39]}  Bc5 {[%clk 0:02:51]} 15. Bxc5 {[%clk 0:02:36]}  Qxc5 {[%clk 0:02:52]} 16. Qd6 {[%clk 0:02:35]}  Qb6 {[%clk 0:02:51]} 17. b3 {[%clk 0:02:35]}  c5 {[%clk 0:02:50]} 18. Rd1 {[%clk 0:02:34]}  Bb7+ {[%clk 0:02:46]} 19. Kg3 {[%clk 0:02:34]}  Bc6 {[%clk 0:02:45]} 20. Nd3 {[%clk 0:02:31]}  g5 {[%clk 0:02:34]} 21. Qxc5 {[%clk 0:02:27]}  gxf4+ {[%clk 0:02:32]} 22. Kf2 {[%clk 0:02:27]}  Ng6 {[%clk 0:02:27]} 23. Qxb6 {[%clk 0:02:11]}  axb6 {[%clk 0:02:27]} 24. a4 {[%clk 0:02:12]}  Be4 {[%clk 0:02:26]} 25. h4 {[%clk 0:02:09]}  Bxd3 {[%clk 0:02:26]} 26. Bxd3 {[%clk 0:02:07]}  Nxe5 {[%clk 0:02:26]} 27. Rhe1 {[%clk 0:01:56]}  d6 {[%clk 0:02:26]} 28. Bxf5 {[%clk 0:01:44]}  Ke7 {[%clk 0:02:26]} 29. Be4 {[%clk 0:01:35]}  Raf8 {[%clk 0:02:19]} 30. Bf3 {[%clk 0:01:35]}  Rhg8 {[%clk 0:02:16]} 31. Ra1 {[%clk 0:01:32]}  Nd3+ {[%clk 0:02:12]} 32. Kf1 {[%clk 0:01:31]}  Nxe1 {[%clk 0:02:12]} 33. Kxe1 {[%clk 0:01:31]}  Rf5 {[%clk 0:02:11]} 34. Kd2 {[%clk 0:01:22]}  Re5 {[%clk 0:02:08]} 35. b4 {[%clk 0:01:20]}  Rc8 {[%clk 0:02:07]} 36. Rc1 {[%clk 0:01:09]}  Re3 {[%clk 0:02:03]} 37. a5 {[%clk 0:01:02]}  bxa5 {[%clk 0:02:02]} 38. b5 {[%clk 0:01:02]}  Rb3 {[%clk 0:01:56]} 39. Ra1 {[%clk 0:00:57]}  Rxc4 {[%clk 0:01:53]} 40. Rxa5 {[%clk 0:00:56]}  Rcb4 {[%clk 0:01:52]} 41. Bc6 {[%clk 0:00:55]}  h5 {[%clk 0:01:44]} 42. Ra7+ {[%clk 0:00:50]}  Kf6 {[%clk 0:01:44]} 43. Rh7 {[%clk 0:00:46]}  Ke5 {[%clk 0:01:38]} 44. Rxh5+ {[%clk 0:00:44]}  Kd4 {[%clk 0:01:38]} 45. Ke1 {[%clk 0:00:41]}  Rb1+ {[%clk 0:01:35]} 46. Kf2 {[%clk 0:00:40]}  e5 {[%clk 0:01:25]} 47. Rh6 {[%clk 0:00:37]}  Kc5 {[%clk 0:01:20]} 48. h5 {[%clk 0:00:36]}  R4b3 {[%clk 0:01:20]} 49. Re6 {[%clk 0:00:30]}  R1b2+ {[%clk 0:01:16]} 50. Kg1 {[%clk 0:00:30]}  f3 {[%clk 0:01:04]} 51. gxf3 {[%clk 0:00:26]}  Rd2 {[%clk 0:00:59]} 52. Be4 {[%clk 0:00:19]}  Rc3 {[%clk 0:00:58]} 53. Bd3 {[%clk 0:00:05]}  Rcxd3 {[%clk 0:00:55]} 54. h6 {[%clk 0:00:04]}  Rc3 {[%clk 0:00:52]} 0-1


[Site "https://www.chess.com"]

[Event "Titled Tuesday Blitz January 31 Early 2023"]
[White "Chakravarthi Reddy, M"]
[Black "Koridze, Lile"]
[WhiteFideId "25009532"]
[BlackFideId "13612514"]
[WhiteElo "2279"]
[BlackElo "2191"]
[Result "0-1"]
[Round "08"]
[TimeControl "180+2"]
[Date "2023.01.31"]
[WhiteClock "0:01:09"]
[BlackClock "0:01:59"]

1. e4 {[%clk 0:03:00]}  c5 {[%clk 0:03:00]} 2. Nf3 {[%clk 0:02:59]}  d6 {[%clk 0:03:00]} 3. Bb5+ {[%clk 0:02:59]}  Nd7 {[%clk 0:03:00]} 4. O-O {[%clk 0:02:57]}  a6 {[%clk 0:03:00]} 5. Bxd7+ {[%clk 0:02:55]}  Bxd7 {[%clk 0:03:01]} 6. c3 {[%clk 0:02:56]}  Nf6 {[%clk 0:03:00]} 7. Re1 {[%clk 0:02:57]}  g6 {[%clk 0:02:59]} 8. d4 {[%clk 0:02:57]}  cxd4 {[%clk 0:02:59]} 9. cxd4 {[%clk 0:02:58]}  Bc6 {[%clk 0:02:55]} 10. d5 {[%clk 0:02:40]}  Bd7 {[%clk 0:02:55]} 11. e5 {[%clk 0:02:41]}  dxe5 {[%clk 0:02:55]} 12. Nxe5 {[%clk 0:02:41]}  Bg7 {[%clk 0:02:55]} 13. d6 {[%clk 0:02:05]}  Be6 {[%clk 0:02:49]} 14. Qa4+ {[%clk 0:01:50]}  b5 {[%clk 0:02:48]} 15. dxe7 {[%clk 0:01:49]}  Qxe7 {[%clk 0:02:46]} 16. Qh4 {[%clk 0:01:46]}  Nd5 {[%clk 0:02:32]} 17. Bg5 {[%clk 0:01:35]}  Qb4 {[%clk 0:02:01]} 18. Ng4 {[%clk 0:01:09]}  Qxe1# {[%clk 0:01:59]} 0-1


[Site "https://www.chess.com"]

[Event "Titled Tuesday Blitz January 31 Early 2023"]
[White "Gonzalez, Francisco Silva"]
[Black "Martin, Lewis"]
[WhiteFideId "1512285"]
[BlackFideId "410551"]
[WhiteElo "2021"]
[BlackElo "2135"]
[Result "1-0"]
[Round "08"]
[TimeControl "180+2"]
[Date "2023.01.31"]
[WhiteClock "0:01:19"]
[BlackClock "0:00:13"]

1. d4 {[%clk 0:03:00]}  d5 {[%clk 0:02:47]} 2. c4 {[%clk 0:02:59]}  c6 {[%clk 0:02:47]} 3. Nc3 {[%clk 0:02:59]}  dxc4 {[%clk 0:02:47]} 4. e4 {[%clk 0:02:58]}  e5 {[%clk 0:02:45]} 5. Nf3 {[%clk 0:02:58]}  exd4 {[%clk 0:02:43]} 6. Nxd4 {[%clk 0:02:59]}  b5 {[%clk 0:02:39]} 7. Be3 {[%clk 0:02:53]}  Nf6 {[%clk 0:02:37]} 8. h3 {[%clk 0:02:52]}  Bb4 {[%clk 0:02:33]} 9. f3 {[%clk 0:02:49]}  O-O {[%clk 0:02:26]} 10. a4 {[%clk 0:02:49]}  Nxe4 {[%clk 0:01:43]} 11. fxe4 {[%clk 0:02:45]}  Qh4+ {[%clk 0:01:43]} 12. Bf2 {[%clk 0:02:41]}  Qxe4+ {[%clk 0:01:42]} 13. Qe2 {[%clk 0:02:40]}  Qg6 {[%clk 0:01:32]} 14. axb5 {[%clk 0:02:40]}  Bd7 {[%clk 0:01:25]} 15. Qxc4 {[%clk 0:02:37]}  Bxc3+ {[%clk 0:01:22]} 16. Qxc3 {[%clk 0:02:35]}  Re8+ {[%clk 0:01:21]} 17. Kd1 {[%clk 0:02:20]}  cxb5 {[%clk 0:01:17]} 18. Qd3 {[%clk 0:02:19]}  Nc6 {[%clk 0:01:03]} 19. Qxg6 {[%clk 0:02:18]}  hxg6 {[%clk 0:01:01]} 20. Nxb5 {[%clk 0:02:17]}  Rad8 {[%clk 0:00:57]} 21. Kc2 {[%clk 0:02:16]}  Bf5+ {[%clk 0:00:52]} 22. Kc3 {[%clk 0:02:14]}  Ne5 {[%clk 0:00:46]} 23. Rxa7 {[%clk 0:02:12]}  Rd1 {[%clk 0:00:38]} 24. g4 {[%clk 0:02:04]}  Be4 {[%clk 0:00:35]} 25. Rg1 {[%clk 0:01:56]}  Rc8+ {[%clk 0:00:35]} 26. Kb4 {[%clk 0:01:49]}  Nc6+ {[%clk 0:00:35]} 27. Kb3 {[%clk 0:01:45]}  Bd5+ {[%clk 0:00:32]} 28. Ka4 {[%clk 0:01:37]}  Nxa7 {[%clk 0:00:30]} 29. Bxa7 {[%clk 0:01:34]}  Bc6 {[%clk 0:00:25]} 30. Kb4 {[%clk 0:01:31]}  Re8 {[%clk 0:00:19]} 31. Bc4 {[%clk 0:01:26]}  Rxg1 {[%clk 0:00:15]} 32. Bxg1 {[%clk 0:01:25]}  Re1 {[%clk 0:00:13]} 33. Bd4 {[%clk 0:01:23]}  Re4 {[%clk 0:00:13]} 34. Kc5 {[%clk 0:01:20]}  Bxb5 {[%clk 0:00:12]} 35. Bxb5 {[%clk 0:01:20]}  Re1 {[%clk 0:00:12]} 36. b4 {[%clk 0:01:21]}  Rc1+ {[%clk 0:00:11]} 37. Bc4 {[%clk 0:01:20]}  Kh7 {[%clk 0:00:12]} 38. b5 {[%clk 0:01:20]}  f5 {[%clk 0:00:12]} 39. gxf5 {[%clk 0:01:18]}  gxf5 {[%clk 0:00:13]} 40. b6 {[%clk 0:01:19]}  f4 {[%clk 0:00:13]} 41. b7 {[%clk 0:01:19]} 1-0


[Site "https://www.chess.com"]

[Event "Titled Tuesday Blitz January 31 Early 2023"]
[White "Krzywda, Andrzej"]
[Black "Lopez Idarraga, Daniel Eduardo"]
[WhiteFideId "1114565"]
[BlackFideId "4405501"]
[WhiteElo "2223"]
[BlackElo "2009"]
[Result "0-1"]
[Round "08"]
[TimeControl "180+2"]
[Date "2023.01.31"]
[WhiteClock "0:00:15"]
[BlackClock "0:00:06"]

1. d4 {[%clk 0:02:58]}  Nf6 {[%clk 0:03:00]} 2. c4 {[%clk 0:02:58]}  e6 {[%clk 0:03:00]} 3. Nf3 {[%clk 0:02:57]}  d5 {[%clk 0:03:00]} 4. g3 {[%clk 0:02:57]}  dxc4 {[%clk 0:02:59]} 5. Bg2 {[%clk 0:02:56]}  b5 {[%clk 0:02:57]} 6. O-O {[%clk 0:02:50]}  Bb7 {[%clk 0:02:57]} 7. a4 {[%clk 0:02:50]}  a6 {[%clk 0:02:56]} 8. Nc3 {[%clk 0:02:46]}  b4 {[%clk 0:02:53]} 9. Na2 {[%clk 0:02:45]}  c5 {[%clk 0:02:51]} 10. Bg5 {[%clk 0:02:13]}  cxd4 {[%clk 0:02:50]} 11. Nxd4 {[%clk 0:02:06]}  Bxg2 {[%clk 0:02:49]} 12. Kxg2 {[%clk 0:02:07]}  Nbd7 {[%clk 0:02:43]} 13. Qd2 {[%clk 0:01:42]}  Qb6 {[%clk 0:02:41]} 14. f3 {[%clk 0:01:31]}  Bc5 {[%clk 0:02:39]} 15. Be3 {[%clk 0:01:24]}  O-O {[%clk 0:02:31]} 16. Rac1 {[%clk 0:01:24]}  Ne5 {[%clk 0:02:22]} 17. Bf2 {[%clk 0:01:15]}  Rfd8 {[%clk 0:02:18]} 18. Rfd1 {[%clk 0:01:10]}  Ra7 {[%clk 0:02:13]} 19. Qe1 {[%clk 0:00:50]}  Bxd4 {[%clk 0:02:10]} 20. Bxd4 {[%clk 0:00:32]}  Rxd4 {[%clk 0:02:11]} 21. Qf2 {[%clk 0:00:33]}  Rad7 {[%clk 0:02:09]} 22. Nxb4 {[%clk 0:00:25]}  R4d6 {[%clk 0:01:07]} 23. Rxd6 {[%clk 0:00:14]}  Qxf2+ {[%clk 0:01:06]} 24. Kxf2 {[%clk 0:00:15]}  Rxd6 {[%clk 0:01:06]} 25. f4 {[%clk 0:00:15]}  Neg4+ {[%clk 0:01:03]} 26. Kf3 {[%clk 0:00:15]}  Nxh2+ {[%clk 0:01:03]} 27. Kg2 {[%clk 0:00:15]}  Nhg4 {[%clk 0:01:00]} 28. Kf3 {[%clk 0:00:14]}  h5 {[%clk 0:00:50]} 29. Rxc4 {[%clk 0:00:15]}  Rd2 {[%clk 0:00:44]} 30. Nxa6 {[%clk 0:00:12]}  Rxb2 {[%clk 0:00:44]} 31. Rc8+ {[%clk 0:00:12]}  Kh7 {[%clk 0:00:43]} 32. Nc5 {[%clk 0:00:12]}  Rc2 {[%clk 0:00:37]} 33. a5 {[%clk 0:00:10]}  Nd7 {[%clk 0:00:35]} 34. a6 {[%clk 0:00:10]}  Nxc5 {[%clk 0:00:27]} 35. a7 {[%clk 0:00:10]}  Rc3+ {[%clk 0:00:28]} 36. Kg2 {[%clk 0:00:08]}  Ra3 {[%clk 0:00:17]} 37. Rxc5 {[%clk 0:00:08]}  Rxa7 {[%clk 0:00:17]} 38. Rxh5+ {[%clk 0:00:08]}  Kg8 {[%clk 0:00:16]} 39. Rb5 {[%clk 0:00:08]}  Nf6 {[%clk 0:00:16]} 40. Kf3 {[%clk 0:00:09]}  Rd7 {[%clk 0:00:15]} 41. e3 {[%clk 0:00:09]}  g6 {[%clk 0:00:15]} 42. g4 {[%clk 0:00:09]}  Kg7 {[%clk 0:00:16]} 43. Rb8 {[%clk 0:00:09]}  Rd3 {[%clk 0:00:15]} 44. Rb1 {[%clk 0:00:10]}  Nd5 {[%clk 0:00:15]} 45. Re1 {[%clk 0:00:11]}  f5 {[%clk 0:00:15]} 46. g5 {[%clk 0:00:11]}  Kf7 {[%clk 0:00:14]} 47. Re2 {[%clk 0:00:12]}  Ke7 {[%clk 0:00:15]} 48. Kf2 {[%clk 0:00:12]}  Kd6 {[%clk 0:00:15]} 49. Re1 {[%clk 0:00:13]}  e5 {[%clk 0:00:14]} 50. Ra1 {[%clk 0:00:11]}  Nxe3 {[%clk 0:00:12]} 51. Ra6+ {[%clk 0:00:11]}  Kd5 {[%clk 0:00:12]} 52. Rxg6 {[%clk 0:00:12]}  exf4 {[%clk 0:00:11]} 53. Ra6 {[%clk 0:00:10]}  Ng4+ {[%clk 0:00:09]} 54. Kg2 {[%clk 0:00:10]}  Rg3+ {[%clk 0:00:09]} 55. Kf1 {[%clk 0:00:10]}  Ke4 {[%clk 0:00:08]} 56. g6 {[%clk 0:00:10]}  Kf3 {[%clk 0:00:07]} 57. Ra3+ {[%clk 0:00:10]}  Ne3+ {[%clk 0:00:07]} 58. Rxe3+ {[%clk 0:00:09]}  fxe3 {[%clk 0:00:06]} 59. g7 {[%clk 0:00:09]}  e2+ {[%clk 0:00:06]} 60. Ke1 {[%clk 0:00:10]}  Rg1+ {[%clk 0:00:07]} 61. Kd2 {[%clk 0:00:11]}  e1=Q+ {[%clk 0:00:07]} 62. Kd3 {[%clk 0:00:12]}  Rxg7 {[%clk 0:00:06]} 63. Kc4 {[%clk 0:00:12]}  Rd7 {[%clk 0:00:06]} 64. Kc5 {[%clk 0:00:13]}  Qc1+ {[%clk 0:00:06]} 65. Kb6 {[%clk 0:00:14]}  Rd2 {[%clk 0:00:04]} 66. Kb7 {[%clk 0:00:14]}  Rb2+ {[%clk 0:00:05]} 67. Ka7 {[%clk 0:00:15]}  Qa1# {[%clk 0:00:06]} 0-1


[Site "https://www.chess.com"]

[Event "Titled Tuesday Blitz January 31 Early 2023"]
[White "Tuleyeva-Aketayeva, Dana"]
[Black "rikchessmx"]
[WhiteFideId "13701932"]
[WhiteElo "2130"]
[BlackElo "2329"]
[Result "1-0"]
[Round "08"]
[TimeControl "180+2"]
[Date "2023.01.31"]
[WhiteClock "0:01:14"]
[BlackClock "0:00:04"]

1. d4 {[%clk 0:03:00]}  d5 {[%clk 0:00:58]} 2. Nf3 {[%clk 0:02:58]}  e6 {[%clk 0:00:57]} 3. g3 {[%clk 0:02:58]}  Nf6 {[%clk 0:00:58]} 4. Bg2 {[%clk 0:02:59]}  h6 {[%clk 0:00:57]} 5. O-O {[%clk 0:02:59]}  g5 {[%clk 0:00:56]} 6. c4 {[%clk 0:02:56]}  c6 {[%clk 0:00:56]} 7. Nc3 {[%clk 0:02:55]}  Bg7 {[%clk 0:00:55]} 8. Nd2 {[%clk 0:02:53]}  Nbd7 {[%clk 0:00:52]} 9. e4 {[%clk 0:02:53]}  dxe4 {[%clk 0:00:52]} 10. Ndxe4 {[%clk 0:02:53]}  Nxe4 {[%clk 0:00:52]} 11. Nxe4 {[%clk 0:02:53]}  Nf6 {[%clk 0:00:52]} 12. Nc3 {[%clk 0:02:42]}  Qc7 {[%clk 0:00:42]} 13. Be3 {[%clk 0:02:29]}  Bd7 {[%clk 0:00:42]} 14. Rc1 {[%clk 0:02:29]}  O-O-O {[%clk 0:00:39]} 15. d5 {[%clk 0:02:25]}  Kb8 {[%clk 0:00:36]} 16. d6 {[%clk 0:02:17]}  Qa5 {[%clk 0:00:36]} 17. c5 {[%clk 0:02:12]}  Nd5 {[%clk 0:00:33]} 18. Nxd5 {[%clk 0:01:53]}  exd5 {[%clk 0:00:31]} 19. Bd4 {[%clk 0:01:44]}  Bxd4 {[%clk 0:00:30]} 20. Qxd4 {[%clk 0:01:45]}  h5 {[%clk 0:00:28]} 21. b4 {[%clk 0:01:44]}  Qb5 {[%clk 0:00:26]} 22. Rfe1 {[%clk 0:01:32]}  h4 {[%clk 0:00:21]} 23. Bf1 {[%clk 0:01:32]}  Qa4 {[%clk 0:00:19]} 24. Qb2 {[%clk 0:01:27]}  Bf5 {[%clk 0:00:14]} 25. Rc3 {[%clk 0:01:23]}  a5 {[%clk 0:00:10]} 26. Ra3 {[%clk 0:01:18]}  Qxb4 {[%clk 0:00:10]} 27. Rb3 {[%clk 0:01:18]}  Qxc5 {[%clk 0:00:04]} 28. Rxb7+ {[%clk 0:01:18]}  Ka8 {[%clk 0:00:04]} 29. Rxf7 {[%clk 0:01:14]} 1-0


[Site "https://www.chess.com"]